Workbook

Sheet Calculations (hidden)
B1: Bandwidth | E1: Max Frame Rate Calculation
B2: Protocol | C2: Bandwidth (Gbps) | E2: Parameter | F2: Value | G2: Remark
B3: CXP3 | C3: 2.4 | E3: Bandwidth | F3: =VLOOKUP(UserInterface!$D$30,Calculations!$B$3:$C$5,2,FALSE)*(100-$C$6)/100 -> 9.8
B4: CXP6 | C4: 4.9 | E4: # of links | F4: =UserInterface!D28 -> 2
B5: CXP12 | C5: 9.8 | E5: Total Bandwidth | F5: =F3*F4*1000000000 -> 19600000000
B6: Overhead (%) | C6: 0 | E6: CLK_PIX (Hz) | F6: =VLOOKUP($C$9,$E$30:$P$37,8,FALSE) -> 80000000 | G6: Sensor Clock - Pre defined
E7: CLK_PIX Period (s) | F7: =1/F6 -> 1.25e-08 | G7: TCLK_PIX
E8: LVDS Lines | F8: =VLOOKUP($C$9,$E$30:$P$37,6,FALSE) -> 16
B9: Sensor select | C9: =CONCATENATE(UserInterface!$B$23," ",UserInterface!$D$25) -> Iron 0505 Normal Speed | E9: LVDS Lines Total | F9: =VLOOKUP($C$9,$E$30:$P$37,7,FALSE) -> 48
B10: Bitness | C10: 8 | E10: Readout Black Lines | F10: =VLOOKUP($C$9,$E$30:$P$37,2,FALSE)-VLOOKUP($C$9,$E$30:$P$37,4,FALSE) + 14 -> 14
C11: 10 | E11: Lines | F11: =UserInterface!$D$26 -> 5120 | G11: NROW
C12: =IF(UserInterface!$D$25="Normal Speed","12","") -> 12 | E12: Columns | F12: =UserInterface!$D$27 -> 5120
B13: Height | C13: =VLOOKUP($C$9,$E$30:$P$37,4,FALSE) -> 5120 | E13: Readout Bits (8,10,12) | F13: =UserInterface!$D$29 -> 12
B14: Width | C14: =VLOOKUP($C$9,$E$30:$P$37,5,FALSE) -> 5120 | E14: Line Size (Bits) | F14: =F12*F13 -> 61440
B15: Links | C15: 1 | E15: Line Rate (Hz) | F15: =F5/F14 -> 319010.4167
C16: 2 | E16: Shortes sensor line time (s) | F16: =1/F15 -> 3.134693878e-06
C17: =IF(UserInterface!$D$25="High Speed","4","") ->  | E17: Shortest line time (clocks) | F17: =F16*F8/(F9*F7) -> 83.59183673 | G17: LINE_U_LENGTH (From protocol)
E18: Shortest sensor line times | F18: =VLOOKUP($C$9,$E$30:$P$37,9,FALSE) -> 124
E19: LINE_U_LENGTH register | F19: =CEILING(MAX(F18,ROUNDUP(F17,0)),4) -> 124
E20: Actual line time | F20: =F19*F9/F8*F7 -> 4.65e-06
E21: TFOT | F21: =VLOOKUP($C$9,$E$30:$P$37,11,FALSE)*F19*F7 -> 9.3e-06
E22: TRD | F22: =(F11+F10+(VLOOKUP($C$9,$E$30:$P$37,12,FALSE)))*F20 -> 0.0238824
E23: TFRM (Min) | F23: =F21+F22 -> 0.0238917
E25: Max FPS | F25: =1/F23 -> 41.85553979
B29: Sensor | E29: Sensor | F29: Sensor Height (V) | G29: Sensor Width (H) | H29: Max Height (V) | I29: Max Width (H) | J29: Multiplexer CH | K29: Multiplexer CH Total | L29: Sensor Clock | M29: min line duration | N29: min exposure ticks | O29: fps_line_duration_factor | P29: fps_min_line_count
B30: Iron 0505 | E30: Iron 0505 Normal Speed | F30: 5120 | G30: 5376 | H30: 5120 | I30: 5120 | J30: 16 | K30: 48 | L30: 80000000 | M30: 124 | N30: 636 | O30: 6 | P30: 2
B31: Iron 2505 | E31: Iron 0505 High Speed | F31: 5120 | G31: 5376 | H31: 5120 | I31: 5120 | J31: 48 | K31: 48 | L31: 96000000 | M31: 124 | N31: 742 | O31: 7 | P31: 10
B32: Iron 2509 | E32: Iron 2505 Normal Speed | F32: 2160 | G32: 2800 | H32: 2160 | I32: 2600 | J32: 10 | K32: 20 | L32: 80000000 | M32: 152 | N32: 119 | O32: 1 | P32: 6
B33: Iron 2518 | E33: Iron 2505 High Speed | F33: 2160 | G33: 2800 | H33: 2160 | I33: 2600 | J33: 20 | K33: 20 | L33: 96000000 | M33: 152 | N33: 119 | O33: 1 | P33: 6
E34: Iron 2509 Normal Speed | F34: 2160 | G34: 4480 | H34: 2160 | I34: 4200 | J34: 16 | K34: 32 | L34: 80000000 | M34: 152 | N34: 119 | O34: 1 | P34: 6
E35: Iron 2509 High Speed | F35: 2160 | G35: 4480 | H35: 2160 | I35: 4200 | J35: 32 | K35: 32 | L35: 96000000 | M35: 152 | N35: 119 | O35: 1 | P35: 6
E36: Iron 2518 Normal Speed | F36: 4096 | G36: 4736 | H36: 4096 | I36: 4508 | J36: 16 | K36: 32 | L36: 80000000 | M36: 152 | N36: 636 | O36: 6 | P36: 8
E37: Iron 2518 High Speed | F37: 4096 | G37: 4736 | H37: 4096 | I37: 4508 | J37: 32 | K37: 32 | L37: 96000000 | M37: 152 | N37: 636 | O37: 6 | P37: 15

Sheet UserInterface (hidden)
B4: IRON x5xx
B7: Frame-Rate Calculator
B15: This document is provided as a simple and convinent tool for our customers to use. Please feel free to contact our support team with any questions - we will be happy to provide assitance and support! For more information, products and the latest updates visit our website, www.KayaInstruments.com
B20: Camera Selector
B22: Select a camera model from the drop-down menu below:
A23: Selector u | B23: Iron 0505
C24: =Calculations!C13&" (V) x "&Calculations!C14&" (H)" -> 5120 (V) x 5120 (H)
B25: Mode Selection | D25: Normal Speed
B26: Number of Desired lines (V) | D26: 5120
B27: Desired Number of Horizontal Pixels (H) | D27: 5120
B28: Number of Links | D28: 2
B29: Bitness Selection: | D29: 12
B30: Interface Selection: | D30: CXP12
B31: MAX Frame Rate: | D31: =Calculations!F25 -> 41.85553979

Sheet Start
B18: You must enable macros in order to use this calculator!
